{"text_format":"1","workbook":"xlsx","n_sheets":3,"sheets":["Tabelle1","Tabelle2","Tabelle3"],"not_rendered":{"charts":0,"images":0,"macros":1,"external_links":0,"defined_names":5,"comments":0,"pivot_tables":0},"unopened":[],"bounds":{"document_bytes":16777216,"sheet_cells":100000,"rows_first":2000,"rows_last":500,"rows_between":2000,"halvings":0,"cell_chars":16384,"cell_head_chars":4096},"cells_cut":0,"cells_raw":0,"read":"whole","date_system":"1900"}

{"sheet":"Tabelle1","index":0,"n_rows":25,"n_cols":7,"rows_kept":25,"cut":false,"hidden":false,"merged":[[24,0,24,4],[22,5,22,6],[23,5,23,6],[24,5,24,6],[19,0,19,5],[20,0,20,5],[21,0,21,5],[22,0,22,4],[23,0,23,4]]}
["Los","Pos","Menge\n","Einheit","Beschreibung der Leistung","Einzelpreis\n","Gesamt\n"]
[null,null,null,null,null,null,{"$f":"C2*F2","v":0}]
[null,null,null,null,null,null,{"$f":"C3*F3","v":0}]
[null,null,null,null,null,null,0]
[null,null,null,null,null,null,0]
[null,null,null,null,null,null,0]
[null,null,null,null,null,null,0]
[null,null,null,null,null,null,0]
[null,null,null,null,null,null,0]
[null,null,null,null,null,null,0]
[null,null,null,null,null,null,0]
[null,null,null,null,null,null,0]
[null,null,null,null,null,null,0]
[null,null,null,null,null,null,0]
[null,null,null,null,null,null,0]
[null,null,null,null,null,null,0]
[null,null,null,null,null,null,0]
[null,null,null,null,null,null,0]
[null,null,null,null,null,null,0]
["Summe (Netto)",null,null,null,null,null,{"$f":"SUM(G2:G19)","v":0}]
[0.19,null,null,null,null,null,{"$f":"G20*A21","v":0}]
["Summe (Brutto)",null,null,null,null,null,{"$f":"SUM(G20:G21)","v":0}]
["Zahlungsziel: 30 Tage netto ab Rechnungseingang"]
["abweichend:"]
["Gewährung Skonto 2% Skonto bei Zahlung binnen 14 Tage",null,null,null,null,{"$f":"G22*2%","v":0}]

{"sheet":"Tabelle2","index":1,"n_rows":0,"n_cols":0,"rows_kept":0,"cut":false,"hidden":false,"merged":[]}

{"sheet":"Tabelle3","index":2,"n_rows":0,"n_cols":0,"rows_kept":0,"cut":false,"hidden":false,"merged":[]}